[Event "Live Chess"]
[Site "Chess.com"]
[Date "2023.05.20"]
[Round "-"]
[White "FlyingChessKestrel13"]
[Black "MaximKris"]
[Result "1/2-1/2"]
[WhiteElo "2148"]
[BlackElo "1802"]
[TimeControl "300"]
[EndTime "9:28:21 PDT"]
[Termination "Game drawn by stalemate"]

1. e4 {[%clk 0:04:57.7]} 1... e5 {[%clk 0:04:58.3]} 2. Nf3 {[%clk 0:04:53.6]}
2... Nc6 {[%clk 0:04:57.1]} 3. Bb5 {[%clk 0:04:50.9]} 3... a6 {[%clk 0:04:54.6]}
4. Ba4 {[%clk 0:04:49.2]} 4... Nf6 {[%clk 0:04:52.9]} 5. d3 {[%clk 0:04:46.5]}
5... b5 {[%clk 0:04:51]} 6. Bb3 {[%clk 0:04:45.3]} 6... d6 {[%clk 0:04:50]} 7.
a4 {[%clk 0:04:44.1]} 7... Be6 {[%clk 0:04:48.2]} 8. Bxe6 {[%clk 0:04:41.4]}
8... fxe6 {[%clk 0:04:48.1]} 9. axb5 {[%clk 0:04:40.1]} 9... axb5 {[%clk
0:04:48]} 10. Rxa8 {[%clk 0:04:38.9]} 10... Qxa8 {[%clk 0:04:47.9]} 11. O-O
{[%clk 0:04:37.7]} 11... Be7 {[%clk 0:04:46.9]} 12. Nc3 {[%clk 0:04:36.6]} 12...
O-O {[%clk 0:04:46.4]} 13. Nxb5 {[%clk 0:04:33.8]} 13... Qb7 {[%clk 0:04:45.8]}
14. c4 {[%clk 0:04:32.1]} 14... Ng4 {[%clk 0:04:42.4]} 15. h3 {[%clk 0:04:27.8]}
15... Nf6 {[%clk 0:04:41.7]} 16. Be3 {[%clk 0:04:26]} 16... Nh5 {[%clk
0:04:40.9]} 17. Ng5 {[%clk 0:04:07.7]} 17... Bxg5 {[%clk 0:04:32.1]} 18. Qxh5
{[%clk 0:03:58.1]} 18... Bxe3 {[%clk 0:04:30.7]} 19. fxe3 {[%clk 0:03:57.3]}
19... Rxf1+ {[%clk 0:04:30.6]} 20. Kxf1 {[%clk 0:03:56.4]} 20... Qc8 {[%clk
0:04:30.2]} 21. Nxc7 {[%clk 0:03:50]} 21... g6 {[%clk 0:04:29.5]} 22. Qg4 {[%clk
0:03:43]} 22... Qxc7 {[%clk 0:04:28.5]} 23. Qxe6+ {[%clk 0:03:41.9]} 23... Qf7+
{[%clk 0:04:28.4]} 24. Qxf7+ {[%clk 0:03:40.6]} 24... Kxf7 {[%clk 0:04:28.3]}
25. Ke2 {[%clk 0:03:38.5]} 25... Ke6 {[%clk 0:04:26.9]} 26. Kd2 {[%clk
0:03:37.9]} 26... h5 {[%clk 0:04:24.4]} 27. Kc3 {[%clk 0:03:37.2]} 27... h4
{[%clk 0:04:23.9]} 28. b4 {[%clk 0:03:34.5]} 28... Ne7 {[%clk 0:04:22.4]} 29. d4
{[%clk 0:03:33]} 29... g5 {[%clk 0:04:20.5]} 30. c5 {[%clk 0:03:30.8]} 30...
exd4+ {[%clk 0:04:19.1]} 31. exd4 {[%clk 0:03:29.7]} 31... d5 {[%clk 0:04:15.2]}
32. Kd3 {[%clk 0:03:13.1]} 32... Ng6 {[%clk 0:04:10.1]} 33. exd5+ {[%clk
0:03:04.3]} 33... Kxd5 {[%clk 0:04:10]} 34. Ke3 {[%clk 0:03:03.8]} 34... Nf4
{[%clk 0:04:08.9]} 35. Kf3 {[%clk 0:03:02.5]} 35... Kxd4 {[%clk 0:04:01.9]} 36.
c6 {[%clk 0:02:59.4]} 36... Ne6 {[%clk 0:03:52.8]} 37. Kg4 {[%clk 0:02:54.1]}
37... Ke5 {[%clk 0:03:48.3]} 38. b5 {[%clk 0:02:52]} 38... Kd6 {[%clk
0:03:47.3]} 39. Kf5 {[%clk 0:02:46.3]} 39... Nd4+ {[%clk 0:03:46.1]} 40. Kxg5
{[%clk 0:02:45.3]} 40... Nxb5 {[%clk 0:03:45.5]} 41. Kxh4 {[%clk 0:02:44.7]}
41... Kxc6 {[%clk 0:03:45.1]} 42. g4 {[%clk 0:02:44.3]} 42... Kd7 {[%clk
0:03:44.6]} 43. Kg5 {[%clk 0:02:43.8]} 43... Ke8 {[%clk 0:03:44.3]} 44. Kg6
{[%clk 0:02:43.4]} 44... Kf8 {[%clk 0:03:43.2]} 45. Kh7 {[%clk 0:02:43.1]} 45...
Nd6 {[%clk 0:03:42.8]} 46. g5 {[%clk 0:02:41.7]} 46... Nf7 {[%clk 0:03:41.9]}
47. h4 {[%clk 0:02:36.9]} 47... Ne5 {[%clk 0:03:39]} 48. h5 {[%clk 0:02:30.1]}
48... Nf3 {[%clk 0:03:03.1]} 49. g6 {[%clk 0:02:26.4]} 49... Ng5+ {[%clk
0:03:01.7]} 50. Kh6 {[%clk 0:02:25.5]} 50... Ne6 {[%clk 0:02:55.6]} 51. Kh7
{[%clk 0:02:16.8]} 51... Ng5+ {[%clk 0:02:50.1]} 52. Kh8 {[%clk 0:02:12.5]}
52... Nf7+ {[%clk 0:02:49.6]} 53. gxf7 {[%clk 0:02:10]} 53... Kxf7 {[%clk
0:02:49.5]} 54. h6 {[%clk 0:02:09.3]} 54... Kf8 {[%clk 0:02:48.8]} 55. h7 {[%clk
0:02:08.7]} 55... Kf7 {[%clk 0:02:47.5]} 1/2-1/2

[Event "Live Chess"]
[Site "Chess.com"]
[Date "2023.05.20"]
[Round "-"]
[White "pashanyk"]
[Black "PaulHumphreys"]
[Result "1-0"]
[WhiteElo "1944"]
[BlackElo "1364"]
[TimeControl "300"]
[EndTime "9:28:25 PDT"]
[Termination "pashanyk won by checkmate"]

1. e4 {[%clk 0:04:58.9]} 1... e6 {[%clk 0:04:56.2]} 2. f4 {[%clk 0:04:56.3]}
2... d5 {[%clk 0:04:55.1]} 3. Nc3 {[%clk 0:04:56]} 3... d4 {[%clk 0:04:52.5]} 4.
Nce2 {[%clk 0:04:54.9]} 4... d3 {[%clk 0:04:49.6]} 5. Nc3 {[%clk 0:04:52.8]}
5... dxc2 {[%clk 0:04:46.5]} 6. Qxc2 {[%clk 0:04:52.7]} 6... Bc5 {[%clk
0:04:40.8]} 7. Nf3 {[%clk 0:04:51.7]} 7... Nf6 {[%clk 0:04:38]} 8. Nb5 {[%clk
0:04:48.6]} 8... Bb6 {[%clk 0:04:32.1]} 9. a4 {[%clk 0:04:47.5]} 9... c6 {[%clk
0:04:23.1]} 10. Nc3 {[%clk 0:04:38.2]} 10... Ng4 {[%clk 0:04:11.7]} 11. Bc4
{[%clk 0:04:12.1]} 11... Bf2+ {[%clk 0:04:07.8]} 12. Ke2 {[%clk 0:04:10]} 12...
Bb6 {[%clk 0:03:51]} 13. b4 {[%clk 0:04:01.3]} 13... Qf6 {[%clk 0:03:30.5]} 14.
d3 {[%clk 0:03:55.1]} 14... Bc7 {[%clk 0:03:25.2]} 15. g3 {[%clk 0:03:52.9]}
15... O-O {[%clk 0:03:08.3]} 16. e5 {[%clk 0:03:39.3]} 16... Qe7 {[%clk
0:02:45.2]} 17. b5 {[%clk 0:03:33.8]} 17... cxb5 {[%clk 0:02:32.6]} 18. Nxb5
{[%clk 0:03:29.9]} 18... Bb6 {[%clk 0:02:24.3]} 19. Ba3 {[%clk 0:03:26.1]} 19...
Bc5 {[%clk 0:02:20.4]} 20. Bb2 {[%clk 0:03:17.7]} 20... b6 {[%clk 0:02:07.1]}
21. d4 {[%clk 0:03:15.6]} 21... Bb4 {[%clk 0:01:41.2]} 22. Qb3 {[%clk
0:03:04.8]} 22... Nc6 {[%clk 0:01:28.7]} 23. Nd6 {[%clk 0:02:54.3]} 23... a5
{[%clk 0:01:09.9]} 24. Bb5 {[%clk 0:02:45.7]} 24... Bb7 {[%clk 0:01:03.3]} 25.
Rhc1 {[%clk 0:02:14.7]} 25... Rac8 {[%clk 0:00:40.1]} 26. Nxc8 {[%clk
0:01:56.2]} 26... Rxc8 {[%clk 0:00:38]} 27. Rc2 {[%clk 0:01:51.1]} 27... Na7
{[%clk 0:00:23.3]} 28. Rac1 {[%clk 0:01:46]} 28... Rxc2+ {[%clk 0:00:20.2]} 29.
Qxc2 {[%clk 0:01:42.3]} 29... Nxb5 {[%clk 0:00:18.7]} 30. axb5 {[%clk
0:01:40.9]} 30... h5 {[%clk 0:00:09.9]} 31. Ng5 {[%clk 0:01:34.2]} 31... Nxh2
{[%clk 0:00:04.6]} 32. Qh7+ {[%clk 0:01:28]} 32... Kf8 {[%clk 0:00:03.4]} 33.
Qh8# {[%clk 0:01:27.3]} 1-0

[Event "Live Chess"]
[Site "Chess.com"]
[Date "2023.05.20"]
[Round "-"]
[White "ossie57"]
[Black "jusjoel"]
[Result "1-0"]
[WhiteElo "1854"]
[BlackElo "263"]
[TimeControl "300"]
[EndTime "9:28:31 PDT"]
[Termination "ossie57 won by resignation"]

1. d4 {[%clk 0:04:59.4]} 1... d5 {[%clk 0:04:57.9]} 2. Nc3 {[%clk 0:04:58.4]}
2... e6 {[%clk 0:04:55.5]} 3. Bf4 {[%clk 0:04:57.5]} 3... Qh4 {[%clk 0:04:45.3]}
4. Bg3 {[%clk 0:04:54]} 4... Qh5 {[%clk 0:04:35.8]} 5. Nb5 {[%clk 0:04:50.1]}
5... c6 {[%clk 0:04:29.7]} 6. Nc7+ {[%clk 0:04:48.7]} 6... Kd7 {[%clk
0:04:15.5]} 7. Nxa8 {[%clk 0:04:48.6]} 7... Bb4+ {[%clk 0:04:10.4]} 8. c3 {[%clk
0:04:45.9]} 8... Ba5 {[%clk 0:04:06.1]} 9. Qa4 {[%clk 0:04:41.9]} 9... b6 {[%clk
0:03:58.6]} 10. Bxb8 {[%clk 0:04:37.9]} 10... b5 {[%clk 0:03:53.1]} 11. Qxa5
{[%clk 0:04:36.6]} 11... a6 {[%clk 0:03:48.5]} 12. Qc7+ {[%clk 0:04:35.2]} 12...
Ke8 {[%clk 0:03:46]} 13. Qxc8+ {[%clk 0:04:31.8]} 13... Ke7 {[%clk 0:03:42.9]}
14. Be5 {[%clk 0:04:29.2]} 1-0

[Event "Live Chess"]
[Site "Chess.com"]
[Date "2023.05.20"]
[Round "-"]
[White "Misha145Chess"]
[Black "Prijmak"]
[Result "1-0"]
[WhiteElo "585"]
[BlackElo "985"]
[TimeControl "300"]
[EndTime "9:28:34 PDT"]
[Termination "Misha145Chess won by resignation"]

1. e4 {[%clk 0:04:55.5]} 1... e5 {[%clk 0:04:57.3]} 2. Nf3 {[%clk 0:04:54.3]}
2... Nc6 {[%clk 0:04:55.1]} 3. Bb5 {[%clk 0:04:53]} 3... d6 {[%clk 0:04:53.3]}
4. d4 {[%clk 0:04:49.8]} 4... a6 {[%clk 0:04:44.3]} 5. Bxc6+ {[%clk 0:04:46.2]}
5... bxc6 {[%clk 0:04:42.5]} 6. dxe5 {[%clk 0:04:43.8]} 6... Bg4 {[%clk
0:04:37.8]} 7. Nbd2 {[%clk 0:04:23.5]} 7... Be7 {[%clk 0:04:21.4]} 8. O-O {[%clk
0:04:19.9]} 8... h6 {[%clk 0:04:10.2]} 9. h3 {[%clk 0:04:18.4]} 9... Be6 {[%clk
0:04:06.3]} 10. exd6 {[%clk 0:04:15.4]} 10... Bxd6 {[%clk 0:04:02]} 11. e5
{[%clk 0:04:04.1]} 11... Bc5 {[%clk 0:03:57.1]} 12. Ne4 {[%clk 0:03:59.4]} 12...
Bb6 {[%clk 0:03:53.5]} 13. Qxd8+ {[%clk 0:03:56.4]} 13... Rxd8 {[%clk
0:03:48.9]} 14. Nc3 {[%clk 0:03:55.4]} 14... Ne7 {[%clk 0:03:46.2]} 15. Rd1
{[%clk 0:03:52.7]} 15... O-O {[%clk 0:03:44.6]} 16. Rxd8 {[%clk 0:03:51.4]}
16... Rxd8 {[%clk 0:03:42.9]} 17. Bf4 {[%clk 0:03:43.4]} 17... Ng6 {[%clk
0:03:38.5]} 18. Bh2 {[%clk 0:03:41.7]} 18... Ba5 {[%clk 0:03:34]} 19. Rd1 {[%clk
0:03:30.5]} 19... Rxd1+ {[%clk 0:03:29.7]} 20. Nxd1 {[%clk 0:03:28.8]} 20... Bf5
{[%clk 0:03:23.9]} 21. Nd4 {[%clk 0:03:19]} 21... Bxc2 {[%clk 0:03:19.1]} 22.
Nxc2 {[%clk 0:03:18.1]} 22... Ne7 {[%clk 0:03:12.4]} 23. Nd4 {[%clk 0:03:11]}
23... Bb6 {[%clk 0:03:09.7]} 24. Nf3 {[%clk 0:02:55.3]} 24... Nd5 {[%clk
0:03:04.3]} 25. Nc3 {[%clk 0:02:44.8]} 25... Nxc3 {[%clk 0:03:01.3]} 26. bxc3
{[%clk 0:02:44.7]} 26... Ba5 {[%clk 0:02:59.2]} 27. c4 {[%clk 0:02:38.4]} 27...
Kf8 {[%clk 0:02:56.4]} 28. Nd4 {[%clk 0:02:30.9]} 28... c5 {[%clk 0:02:52.8]}
29. Nb3 {[%clk 0:02:28.7]} 29... Bc3 {[%clk 0:02:50]} 30. Nxc5 {[%clk
0:02:21.1]} 30... a5 {[%clk 0:02:45.3]} 31. e6 {[%clk 0:02:17.5]} 31... Ke7
{[%clk 0:02:38.4]} 32. Bxc7 {[%clk 0:02:15.4]} 32... fxe6 {[%clk 0:02:35.3]} 33.
Ne4 {[%clk 0:02:06.3]} 33... Bb4 {[%clk 0:02:31.3]} 34. a3 {[%clk 0:01:58.3]}
34... Bxa3 {[%clk 0:02:27.9]} 35. Bxa5 {[%clk 0:01:57.4]} 35... Bb2 {[%clk
0:02:26.4]} 36. c5 {[%clk 0:01:55]} 36... Be5 {[%clk 0:02:24.7]} 37. c6 {[%clk
0:01:51.7]} 37... g6 {[%clk 0:02:21.1]} 38. c7 {[%clk 0:01:50.1]} 38... Bxc7
{[%clk 0:02:18.7]} 39. Bxc7 {[%clk 0:01:50]} 39... Kd7 {[%clk 0:02:17.5]} 40.
Bf4 {[%clk 0:01:45.4]} 40... Ke7 {[%clk 0:02:13.5]} 41. Bxh6 {[%clk 0:01:44.4]}
41... Kf7 {[%clk 0:02:10.7]} 42. Ng5+ {[%clk 0:01:40.3]} 42... Kf6 {[%clk
0:02:08.2]} 43. Ne4+ {[%clk 0:01:35.9]} 43... Ke5 {[%clk 0:02:05.8]} 44. f3
{[%clk 0:01:29]} 44... Kd5 {[%clk 0:02:00.4]} 45. Nf6+ {[%clk 0:01:25.7]} 45...
Ke5 {[%clk 0:01:58.4]} 46. Bg5 {[%clk 0:01:24]} 46... Kf5 {[%clk 0:01:56.4]} 47.
Nh7 {[%clk 0:01:11.8]} 47... e5 {[%clk 0:01:51.4]} 48. h4 {[%clk 0:01:10.1]}
48... e4 {[%clk 0:01:46]} 49. g4+ {[%clk 0:01:08.9]} 49... Ke5 {[%clk 0:01:40]}
50. fxe4 {[%clk 0:01:08.8]} 50... Kxe4 {[%clk 0:01:38.2]} 51. h5 {[%clk
0:01:08.3]} 51... Ke5 {[%clk 0:01:36]} 52. hxg6 {[%clk 0:01:07.3]} 52... Ke6
{[%clk 0:01:32.9]} 53. Nf8+ {[%clk 0:01:04.7]} 1-0

[Event "Live Chess"]
[Site "Chess.com"]
[Date "2023.05.20"]
[Round "-"]
[White "NAZRIZ1977"]
[Black "JackRudd"]
[Result "0-1"]
[WhiteElo "2138"]
[BlackElo "2422"]
[TimeControl "300"]
[EndTime "9:28:36 PDT"]
[Termination "JackRudd won by resignation"]

1. c4 {[%clk 0:04:57.3]} 1... Nf6 {[%clk 0:04:58.4]} 2. g3 {[%clk 0:04:56.1]}
2... c5 {[%clk 0:04:55.9]} 3. Bg2 {[%clk 0:04:55.1]} 3... Nc6 {[%clk 0:04:55.1]}
4. Nf3 {[%clk 0:04:53.7]} 4... d6 {[%clk 0:04:53.5]} 5. O-O {[%clk 0:04:52.5]}
5... Be6 {[%clk 0:04:50.8]} 6. d3 {[%clk 0:04:49.2]} 6... Qc8 {[%clk 0:04:49.4]}
7. Re1 {[%clk 0:04:48]} 7... Bh3 {[%clk 0:04:48]} 8. Bh1 {[%clk 0:04:47.3]} 8...
h5 {[%clk 0:04:45.6]} 9. Nc3 {[%clk 0:04:45.8]} 9... h4 {[%clk 0:04:44]} 10. a3
{[%clk 0:04:44.1]} 10... hxg3 {[%clk 0:04:42.1]} 11. fxg3 {[%clk 0:04:43.3]}
11... g6 {[%clk 0:04:38.9]} 12. Rb1 {[%clk 0:04:41.8]} 12... Bg7 {[%clk
0:04:37.7]} 13. b4 {[%clk 0:04:41.2]} 13... Ng4 {[%clk 0:04:33.2]} 14. Nd5
{[%clk 0:04:36.4]} 14... Nd4 {[%clk 0:04:30.8]} 15. Nxd4 {[%clk 0:04:34.9]}
15... Bxd4+ {[%clk 0:04:29.1]} 16. e3 {[%clk 0:04:32.9]} 16... Be5 {[%clk
0:04:26.5]} 17. bxc5 {[%clk 0:04:29.9]} 17... Nxh2 {[%clk 0:04:24.9]} 18. Rxb7
{[%clk 0:04:21.4]} 18... Bg4 {[%clk 0:04:22.5]} 19. Rxe7+ {[%clk 0:04:05.1]}
19... Kf8 {[%clk 0:04:20.8]} 20. Qa4 {[%clk 0:03:42.6]} 20... Qf5 {[%clk
0:04:17.4]} 21. e4 {[%clk 0:03:29.2]} 21... Nf3+ {[%clk 0:04:13.4]} 0-1

[Event "Live Chess"]
[Site "Chess.com"]
[Date "2023.05.20"]
[Round "-"]
[White "BostonStrangler"]
[Black "bristolunichess"]
[Result "0-1"]
[WhiteElo "1983"]
[BlackElo "1846"]
[TimeControl "300"]
[EndTime "9:28:37 PDT"]
[Termination "bristolunichess won on time"]

1. e4 {[%clk 0:04:56]} 1... e5 {[%clk 0:04:59]} 2. Bc4 {[%clk 0:04:53.7]} 2...
Nf6 {[%clk 0:04:55.1]} 3. d3 {[%clk 0:04:52.6]} 3... Nc6 {[%clk 0:04:50.4]} 4.
Nc3 {[%clk 0:04:50.4]} 4... d6 {[%clk 0:04:49.5]} 5. f4 {[%clk 0:04:48]} 5...
exf4 {[%clk 0:04:44.8]} 6. Bxf4 {[%clk 0:04:46.2]} 6... Be7 {[%clk 0:04:42.5]}
7. Qd2 {[%clk 0:04:43]} 7... d5 {[%clk 0:04:35.9]} 8. exd5 {[%clk 0:04:35.9]}
8... Nb4 {[%clk 0:04:35]} 9. Nge2 {[%clk 0:03:48.8]} 9... Nbxd5 {[%clk
0:04:29.6]} 10. Bg3 {[%clk 0:03:39.6]} 10... c6 {[%clk 0:04:15.1]} 11. a3 {[%clk
0:03:33.3]} 11... Bg4 {[%clk 0:04:10.7]} 12. h3 {[%clk 0:03:26.4]} 12... Bh5
{[%clk 0:04:07.2]} 13. O-O {[%clk 0:03:19.3]} 13... O-O {[%clk 0:04:00.1]} 14.
Kh1 {[%clk 0:03:03.6]} 14... b5 {[%clk 0:03:46.6]} 15. Bb3 {[%clk 0:02:58.6]}
15... Bg6 {[%clk 0:03:41.9]} 16. Nf4 {[%clk 0:02:52.8]} 16... Bd6 {[%clk
0:03:15.1]} 17. Nfxd5 {[%clk 0:02:35.9]} 17... Bxg3 {[%clk 0:03:03.9]} 18. Nxf6+
{[%clk 0:02:34.4]} 18... gxf6 {[%clk 0:03:01.4]} 19. Qe3 {[%clk 0:02:19.2]}
19... Qc7 {[%clk 0:02:59.8]} 20. Rxf6 {[%clk 0:02:12.6]} 20... Rae8 {[%clk
0:02:45.7]} 21. Qh6 {[%clk 0:02:10.8]} 21... Be5 {[%clk 0:02:35.8]} 22. Rf3
{[%clk 0:01:39.6]} 22... Bg7 {[%clk 0:02:31]} 23. Qf4 {[%clk 0:01:35.1]} 23...
Be5 {[%clk 0:02:16.6]} 24. Qg5 {[%clk 0:01:22.3]} 24... Bg7 {[%clk 0:02:05.9]}
25. Raf1 {[%clk 0:01:19.4]} 25... Re7 {[%clk 0:02:03.1]} 26. h4 {[%clk 0:01:08]}
26... Qe5 {[%clk 0:01:59.4]} 27. Qxe5 {[%clk 0:01:02.6]} 27... Rxe5 {[%clk
0:01:56.3]} 28. a4 {[%clk 0:00:54.2]} 28... b4 {[%clk 0:01:46.4]} 29. Nd1 {[%clk
0:00:48.5]} 29... c5 {[%clk 0:01:38.1]} 30. Ne3 {[%clk 0:00:45.6]} 30... Kh8
{[%clk 0:01:15.8]} 31. g3 {[%clk 0:00:43.5]} 31... Rfe8 {[%clk 0:01:10.9]} 32.
Ng4 {[%clk 0:00:41.5]} 32... R5e7 {[%clk 0:00:45.8]} 33. R1f2 {[%clk 0:00:37.6]}
33... Bxb2 {[%clk 0:00:44.1]} 34. Bxf7 {[%clk 0:00:35.1]} 34... Bxf7 {[%clk
0:00:37.8]} 35. Rxf7 {[%clk 0:00:34]} 35... Rxf7 {[%clk 0:00:35.8]} 36. Rxf7
{[%clk 0:00:33.9]} 36... Bg7 {[%clk 0:00:34]} 37. h5 {[%clk 0:00:29.7]} 37... h6
{[%clk 0:00:32.7]} 38. Rxa7 {[%clk 0:00:27.2]} 38... Re1+ {[%clk 0:00:31.2]} 39.
Kg2 {[%clk 0:00:25.8]} 39... Re2+ {[%clk 0:00:30.6]} 40. Kf3 {[%clk 0:00:24.8]}
40... Rxc2 {[%clk 0:00:30.2]} 41. Ke4 {[%clk 0:00:21.2]} 41... b3 {[%clk
0:00:29.1]} 42. Ne3 {[%clk 0:00:16.9]} 42... Re2 {[%clk 0:00:27]} 43. Kf5 {[%clk
0:00:10.6]} 43... b2 {[%clk 0:00:26.1]} 44. Rb7 {[%clk 0:00:08.1]} 44... Rxe3
{[%clk 0:00:24.4]} 45. Kg6 {[%clk 0:00:06.9]} 45... Re8 {[%clk 0:00:22.5]} 46.
a5 {[%clk 0:00:05.1]} 46... Kg8 {[%clk 0:00:20]} 47. a6 {[%clk 0:00:04.3]} 47...
Kf8 {[%clk 0:00:19.3]} 48. a7 {[%clk 0:00:03.5]} 48... Be5 {[%clk 0:00:17.8]}
49. g4 {[%clk 0:00:01.1]} 49... Bd6 {[%clk 0:00:16.3]} 0-1

[Event "Live Chess"]
[Site "Chess.com"]
[Date "2023.05.20"]
[Round "-"]
[White "lateforthesky"]
[Black "djw60"]
[Result "0-1"]
[WhiteElo "2108"]
[BlackElo "2157"]
[TimeControl "300"]
[EndTime "9:28:37 PDT"]
[Termination "djw60 won by resignation"]

1. e4 {[%clk 0:04:55.5]} 1... e5 {[%clk 0:04:58.4]} 2. Nf3 {[%clk 0:04:53.9]}
2... Nc6 {[%clk 0:04:57.2]} 3. Bb5 {[%clk 0:04:52.8]} 3... a6 {[%clk 0:04:55.7]}
4. Ba4 {[%clk 0:04:51.8]} 4... Nf6 {[%clk 0:04:54.3]} 5. O-O {[%clk 0:04:49.7]}
5... Be7 {[%clk 0:04:50]} 6. d4 {[%clk 0:04:43.8]} 6... exd4 {[%clk 0:04:45.1]}
7. Re1 {[%clk 0:04:42.1]} 7... O-O {[%clk 0:04:38.1]} 8. e5 {[%clk 0:04:40.3]}
8... Nd5 {[%clk 0:04:28.1]} 9. c3 {[%clk 0:04:22.9]} 9... Nb6 {[%clk 0:04:20.9]}
10. Bc2 {[%clk 0:04:20]} 10... d6 {[%clk 0:04:08.2]} 11. cxd4 {[%clk 0:03:41.3]}
11... dxe5 {[%clk 0:04:06.3]} 12. dxe5 {[%clk 0:03:24.9]} 12... Qxd1 {[%clk
0:03:59.8]} 13. Rxd1 {[%clk 0:03:24]} 13... Nb4 {[%clk 0:03:52.8]} 14. Be4
{[%clk 0:03:17.2]} 14... c6 {[%clk 0:03:46.6]} 15. Nc3 {[%clk 0:03:14]} 15...
Be6 {[%clk 0:03:44.2]} 16. Nd4 {[%clk 0:03:04.2]} 16... N4d5 {[%clk 0:03:32.9]}
17. Nxe6 {[%clk 0:02:45.5]} 17... fxe6 {[%clk 0:03:30.7]} 18. Bd2 {[%clk
0:02:44.9]} 18... Nc4 {[%clk 0:03:26.8]} 19. Be1 {[%clk 0:02:31.8]} 19... Nxe5
{[%clk 0:03:21.2]} 20. Ne2 {[%clk 0:02:16.2]} 20... Bc5 {[%clk 0:03:12]} 21. Nd4
{[%clk 0:02:07.7]} 21... Rae8 {[%clk 0:03:06.6]} 22. Rac1 {[%clk 0:02:05.4]}
22... Ba7 {[%clk 0:03:03.6]} 23. a3 {[%clk 0:02:00.7]} 23... Rf4 {[%clk
0:02:49.1]} 24. f3 {[%clk 0:01:53.9]} 24... Ng6 {[%clk 0:02:30.5]} 25. Bg3
{[%clk 0:01:50.8]} 25... e5 {[%clk 0:02:27.5]} 26. Bxf4 {[%clk 0:01:36.9]} 26...
Ngxf4 {[%clk 0:02:26.5]} 27. Kh1 {[%clk 0:01:30.6]} 27... Bxd4 {[%clk
0:02:23.6]} 28. g3 {[%clk 0:01:24.7]} 28... Nh3 {[%clk 0:02:16.5]} 29. Kg2
{[%clk 0:01:13.7]} 29... Ng5 {[%clk 0:02:06.3]} 30. Bxd5+ {[%clk 0:01:12.2]}
30... cxd5 {[%clk 0:02:05]} 31. Rc7 {[%clk 0:01:08.6]} 31... e4 {[%clk
0:01:40.5]} 32. Rxd4 {[%clk 0:01:03.2]} 32... Ne6 {[%clk 0:01:39.6]} 33. Rxg7+
{[%clk 0:00:58.6]} 33... Kxg7 {[%clk 0:01:36.9]} 34. Rxd5 {[%clk 0:00:58.1]}
34... exf3+ {[%clk 0:01:34.4]} 35. Kxf3 {[%clk 0:00:57]} 35... Kf6 {[%clk
0:01:33.2]} 36. Rd7 {[%clk 0:00:53.6]} 36... Re7 {[%clk 0:01:32.2]} 37. Rd1
{[%clk 0:00:48.5]} 37... Nc5 {[%clk 0:01:28.7]} 38. b4 {[%clk 0:00:44.8]} 38...
Ne4 {[%clk 0:01:25.4]} 39. Rd4 {[%clk 0:00:40.7]} 39... Ng5+ {[%clk 0:01:22.1]}
40. Kg2 {[%clk 0:00:34.1]} 40... Re2+ {[%clk 0:01:20.2]} 41. Kf1 {[%clk
0:00:29.3]} 41... Rxh2 {[%clk 0:01:16.8]} 42. Rd6+ {[%clk 0:00:24.7]} 42... Kf5
{[%clk 0:01:14.7]} 43. Rb6 {[%clk 0:00:23.6]} 43... Ra2 {[%clk 0:01:10.6]} 44.
Rxb7 {[%clk 0:00:21.4]} 44... Rxa3 {[%clk 0:01:09.9]} 45. b5 {[%clk 0:00:20.4]}
45... axb5 {[%clk 0:01:08.2]} 46. Rxb5+ {[%clk 0:00:19.5]} 46... Kg4 {[%clk
0:01:07.6]} 47. Rb4+ {[%clk 0:00:15.6]} 47... Kf3 {[%clk 0:01:04]} 0-1

[Event "Live Chess"]
[Site "Chess.com"]
[Date "2023.05.20"]
[Round "-"]
[White "JanMur7"]
[Black "alexlines8"]
[Result "1-0"]
[WhiteElo "1977"]
[BlackElo "1271"]
[TimeControl "300"]
[EndTime "9:28:48 PDT"]
[Termination "JanMur7 won by checkmate"]

1. e4 {[%clk 0:04:58.1]} 1... c6 {[%clk 0:04:59.6]} 2. d4 {[%clk 0:04:56.7]}
2... d5 {[%clk 0:04:59.3]} 3. Nc3 {[%clk 0:04:55.2]} 3... dxe4 {[%clk 0:04:57]}
4. Nxe4 {[%clk 0:04:55.1]} 4... Nf6 {[%clk 0:04:55.7]} 5. Nxf6+ {[%clk 0:04:54]}
5... exf6 {[%clk 0:04:55.5]} 6. Nf3 {[%clk 0:04:53.5]} 6... Bd6 {[%clk
0:04:53.8]} 7. Bd3 {[%clk 0:04:52.7]} 7... Qe7+ {[%clk 0:04:52.8]} 8. Qe2 {[%clk
0:04:51.4]} 8... Qxe2+ {[%clk 0:04:51.6]} 9. Kxe2 {[%clk 0:04:51]} 9... O-O
{[%clk 0:04:51.1]} 10. Re1 {[%clk 0:04:47.4]} 10... Bg4 {[%clk 0:04:50.5]} 11.
h3 {[%clk 0:04:45.2]} 11... Bh5 {[%clk 0:04:49.2]} 12. g4 {[%clk 0:04:43.4]}
12... Bg6 {[%clk 0:04:46.8]} 13. Bxg6 {[%clk 0:04:42.6]} 13... fxg6 {[%clk
0:04:46.7]} 14. Kd3 {[%clk 0:04:40.3]} 14... b5 {[%clk 0:04:44]} 15. Re6 {[%clk
0:04:38.3]} 15... Bc7 {[%clk 0:04:38.1]} 16. c3 {[%clk 0:04:31.1]} 16... a5
{[%clk 0:04:29.4]} 17. Bd2 {[%clk 0:04:26.8]} 17... Ra6 {[%clk 0:04:27.7]} 18.
Rae1 {[%clk 0:04:24]} 18... g5 {[%clk 0:04:05.9]} 19. Re8 {[%clk 0:04:14.9]}
19... Rxe8 {[%clk 0:04:04.5]} 20. Rxe8+ {[%clk 0:04:14.8]} 20... Kf7 {[%clk
0:04:03.9]} 21. Re4 {[%clk 0:04:11.2]} 21... Nd7 {[%clk 0:03:59.2]} 22. h4
{[%clk 0:04:08.8]} 22... gxh4 {[%clk 0:03:56.1]} 23. Nxh4 {[%clk 0:04:08.7]}
23... c5 {[%clk 0:03:49.5]} 24. Nf5 {[%clk 0:04:02]} 24... c4+ {[%clk
0:03:40.2]} 25. Kc2 {[%clk 0:03:53.8]} 25... g6 {[%clk 0:03:30.5]} 26. Re7+
{[%clk 0:03:51.1]} 26... Kf8 {[%clk 0:03:26.3]} 27. Bh6+ {[%clk 0:03:46.8]}
27... Kg8 {[%clk 0:03:24.6]} 28. Rg7+ {[%clk 0:03:34.8]} 28... Kh8 {[%clk
0:03:18.3]} 29. Rxd7 {[%clk 0:03:28.7]} 29... gxf5 {[%clk 0:03:14.7]} 30. Rxc7
{[%clk 0:03:24.4]} 30... fxg4 {[%clk 0:03:11.1]} 31. Rc8# {[%clk 0:03:23]} 1-0